fUST/lending_fUST_20241004
["ID","MTS","AMOUNT","RATE_DAILY","PERIOD"]
[339802222,1727988659792,-500.0,0.00013698,2]
[339802223,1727988659802,-621.04,0.00013698,2]
[339802224,1727988659811,-500.0,0.00013698,2]
[339802225,1727988659820,-500.0,0.00013698,2]
[339802226,1727988659832,-824.15,0.00013698,2]
[339802227,1727988659842,-500.0,0.00013698,2]
[339802228,1727988659852,-500.0,0.00013698,2]
[339802229,1727988659861,-500.0,0.00013698,2]
[339802230,1727988659871,-749.42,0.00013698,2]
[339802231,1727988659882,-500.0,0.00013698,2]
[339802232,1727988659896,-500.0,0.00013698,2]
[339802233,1727988659907,-182.49203148,0.00013698,2]
[339802234,1727988659919,-500.0,0.00013698,2]
[339802235,1727988659929,-500.0,0.00013698,2]
[339802236,1727988659942,-634.39,0.00013698,2]
[339802237,1727988659953,-500.0,0.00013698,2]
[339802238,1727988659964,-500.0,0.00013698,2]
[339802239,1727988659975,-500.0,0.00013698,2]
[339802240,1727988659986,-617.82013953,0.00013698,2]
[339802241,1727988659997,-500.0,0.00013698,2]
[339802242,1727988660008,-500.0,0.00013698,2]
[339802243,1727988660016,-673.6,0.00013698,2]
[339802244,1727988660026,-500.0,0.00013698,2]
[339802245,1727988660035,-500.0,0.00013698,2]
[339802246,1727988660044,-500.0,0.00013698,2]
[339802247,1727988660056,-504.82293083,0.00013698,2]
[339802248,1727988660065,-500.0,0.00013698,2]
[339802249,1727988660075,-224.76357468,0.00013698,2]
[339802250,1727988660085,-500.0,0.00013698,2]
[339802251,1727988660094,-500.0,0.00013698,2]
[339802252,1727988660103,-500.0,0.00013698,2]
[339802253,1727988660112,-500.0,0.00013698,2]
[339802254,1727988660121,-500.0,0.00013698,2]
[339802255,1727988660130,-500.0,0.00013698,2]
[339802256,1727988660139,-500.0,0.00013698,2]
[339802257,1727988660150,-500.0,0.00013698,2]
[339802258,1727988660159,-255.57080715,0.00013698,2]
[339802259,1727988660168,-500.0,0.00013698,2]
[339802260,1727988660177,-500.0,0.00013698,2]
[339802261,1727988660187,-500.0,0.00013698,2]
[339802262,1727988660196,-597.27,0.00013698,2]
[339802263,1727988660205,-563.57,0.00013698,2]
[339802264,1727988660215,-500.0,0.00013698,2]
[339802265,1727988660225,-500.0,0.00013698,2]
[339802266,1727988660234,-500.0,0.00013698,2]
[339802267,1727988660244,-666.38,0.00013698,2]
[339802268,1727988660254,-289.81,0.00013698,2]
[339802269,1727988660263,-500.0,0.00013698,2]
[339802270,1727988660273,-705.43,0.00013698,2]
[339802271,1727988660282,-384.54262376,0.00013698,2]
[339802272,1727988660291,-500.0,0.00013698,2]
[339802273,1727988660303,-682.2,0.00013698,2]
[339802274,1727988660313,-547.53,0.00013698,2]
[339802275,1727988660324,-645.59423406,0.00013698,2]
[339802276,1727988660334,-500.0,0.00013698,2]
[339802277,1727988660344,-500.0,0.00013698,2]
[339802278,1727988660355,-500.0,0.00013698,2]
[339802279,1727988660365,-500.0,0.00013698,2]
[339802280,1727988660375,-500.0,0.00013698,2]
[339802281,1727988660384,-500.0,0.00013698,2]
[339802282,1727988660395,-500.0,0.00013698,2]
[339802283,1727988660414,-500.0,0.00013698,2]
[339802284,1727988660425,-500.0,0.00013698,2]
[339802285,1727988660439,-500.0,0.00013698,2]
[339802286,1727988660449,-500.0,0.00013698,2]
[339802287,1727988660458,-554.29658279,0.00013698,2]
[339802288,1727988660468,-500.0,0.00013698,2]
[339802289,1727988660477,-600.76,0.00013698,2]
[339802290,1727988660486,-521.74,0.00013698,2]
[339802291,1727988660496,-500.0,0.00013698,2]
[339802292,1727988660506,-254.05118698,0.00013698,2]
[339802293,1727988660515,-500.0,0.00013698,2]
[339802294,1727988660525,-500.0,0.00013698,2]
[339802295,1727988660535,-500.0,0.00013698,5]
[339802296,1727988660547,-500.0,0.00013698,2]
[339802297,1727988660557,-500.0,0.00013698,2]
[339802298,1727988660567,-500.0,0.00013698,2]
[339802299,1727988660579,-500.0,0.00013698,2]
[339802300,1727988660590,-500.0,0.00013698,2]
[339802301,1727988660599,-500.0,0.00013698,2]
[339802302,1727988660610,-500.0,0.00013698,2]
[339802303,1727988660621,-500.84893367,0.00013698,2]
[339802304,1727988660631,-500.0,0.00013698,2]
[339802305,1727988660642,-500.0,0.00013698,2]
[339802306,1727988660655,-500.0,0.00013698,2]
[339802307,1727988660665,-500.0,0.00013698,2]
[339802308,1727988660674,-892.88,0.00013698,2]
[339802309,1727988660684,-343.802978,0.00013698,2]
[339802310,1727988660693,-797.35,0.00013698,2]
[339802311,1727988660702,-500.0,0.00013698,2]
[339802312,1727988660711,-500.86,0.00013698,2]
[339802313,1727988660720,-500.0,0.00013698,2]
[339802314,1727988660730,-500.0,0.00013698,2]
[339802315,1727988660739,-500.0,0.00013698,2]
[339802316,1727988660749,-488.18561771,0.00013698,2]
[339802317,1727988660759,-500.0,0.00013698,2]
[339802318,1727988660768,-500.0,0.00013698,2]
[339802319,1727988660777,-500.0,0.00013698,2]
[339802320,1727988660786,-500.0,0.00013698,2]
[339802321,1727988660798,-500.0,0.00013698,2]
[339802322,1727988660810,-500.0,0.00013698,2]
[339802323,1727988660819,-500.0,0.00013698,2]
[339802324,1727988660829,-501.19703065,0.00013698,2]
[339802325,1727988660840,-566.48,0.00013698,2]
[339802326,1727988660850,-500.0,0.00013698,2]
[339802327,1727988660859,-500.0,0.00013698,2]
[339802328,1727988660869,-500.0,0.00013698,2]
[339802329,1727988660879,-500.0,0.00013698,2]
[339802330,1727988660889,-1298.01,0.00013698,2]
[339802331,1727988660905,-2239.12,0.00013698,7]
[339802332,1727988660914,-661.2,0.00013698,2]
[339802333,1727988660924,-500.0,0.00013698,2]
[339802334,1727988660932,-501.97698082,0.00013698,2]
[339802335,1727988660943,-500.0,0.00013698,2]
[339802336,1727988660952,-500.0,0.00013698,2]
[339802337,1727988660962,-765.0,0.00013698,2]
[339802338,1727988660971,-500.0,0.00013698,2]
[339802339,1727988660980,-500.0,0.00013698,2]
[339802340,1727988660991,-594.15,0.00013698,2]
[339802341,1727988661000,-500.0,0.00013698,2]
[339802342,1727988661010,-500.0,0.00013698,2]
[339802343,1727988661019,-656.26,0.00013698,2]
[339802344,1727988661152,-500.0,0.00013698,2]
[339802345,1727988661162,-500.0,0.00013698,2]
[339802346,1727988661171,-500.0,0.00013698,2]
[339802347,1727988661181,-500.0,0.00013698,2]
[339802348,1727988661190,-500.0,0.00013698,2]
[339802349,1727988661199,-500.0,0.00013698,2]
[339802350,1727988661208,-546.25,0.00013698,2]
[339802351,1727988661217,-500.0,0.00013698,2]
[339802352,1727988661226,-500.0,0.00013698,2]
[339802353,1727988661235,-383.02291366,0.00013698,2]
[339802354,1727988661244,-500.0,0.00013698,2]
[339802355,1727988661254,-563.33,0.00013698,2]
[339802356,1727988661263,-500.0,0.00013698,2]
[339802357,1727988661272,-500.0,0.00013698,2]
[339802358,1727988661281,-570.42,0.00013698,2]
[339802359,1727988661290,-500.0,0.00013698,2]
[339802360,1727988661298,-500.0,0.00013698,2]
[339802361,1727988661308,-500.0,0.00013698,2]
[339802362,1727988661317,-500.0,0.00013698,2]
[339802363,1727988661326,-500.0,0.00013698,2]
[339802364,1727988661336,-500.0,0.00013698,2]
[339802365,1727988661345,-500.0,0.00013698,2]
[339802366,1727988661355,-960.12,0.00013698,2]
[339802367,1727988661365,-500.0,0.00013698,2]
[339802368,1727988661375,-500.0,0.00013698,2]
[339802369,1727988661384,-500.0,0.00013698,2]
[339802370,1727988661395,-500.0,0.00013698,2]
[339802371,1727988661404,-500.0,0.00013698,2]
[339802372,1727988661414,-500.0,0.00013698,2]
[339802373,1727988661427,-500.0,0.00013698,2]
[339802374,1727988661440,-500.0,0.00013698,2]
[339802375,1727988661451,-771.66,0.00013698,2]
[339802376,1727988661462,-500.0,0.00013698,2]
[339802377,1727988661473,-500.0,0.00013698,2]
[339802378,1727988661483,-500.0,0.00013698,2]
[339802379,1727988661491,-500.0,0.00013698,2]
[339802380,1727988661502,-500.0,0.00013698,2]
[339802381,1727988661514,-500.0,0.00013698,2]
[339802382,1727988661526,-500.0,0.00013698,2]
[339802383,1727988661537,-630.4,0.00013698,2]
[339802384,1727988661550,-754.16,0.00013698,2]
[339802385,1727988661561,-500.0,0.00013698,2]
[339802386,1727988661570,-500.0,0.00013698,2]
[339802387,1727988661580,-1044.92,0.00013698,2]
[339802388,1727988661589,-628.8,0.00013698,2]
[339802389,1727988661599,-507.71,0.00013698,2]
[339802390,1727988661608,-500.0,0.00013698,2]
[339802391,1727988661617,-500.0,0.00013698,2]
[339802392,1727988661627,-500.0,0.00013698,2]
[339802393,1727988661637,-524.39,0.00013698,2]
[339802394,1727988661648,-500.0,0.00013698,2]
[339802395,1727988661658,-500.0,0.00013698,2]
[339802396,1727988661669,-500.0,0.00013698,2]
[339802397,1727988661679,-500.0,0.00013698,2]
[339802398,1727988661690,-500.0,0.00013698,2]
[339802399,1727988661702,-763.93,0.00013698,2]
[339802400,1727988661713,-500.0,0.00013698,2]
[339802401,1727988661723,-500.0,0.00013698,2]
[339802402,1727988661734,-594.65,0.00013698,2]
[339802403,1727988661744,-500.0,0.00013698,2]
[339802404,1727988661755,-500.0,0.00013698,2]
[339802405,1727988661766,-500.0,0.00013698,2]
[339802406,1727988661775,-500.0,0.00013698,2]
[339802407,1727988661785,-850.93,0.00013698,2]
[339802408,1727988661794,-566.069007,0.00013698,2]
[339802409,1727988661804,-500.0,0.00013698,2]
[339802410,1727988661814,-500.0,0.00013698,2]
[339802411,1727988661823,-500.0,0.00013698,2]
[339802412,1727988661835,-500.0,0.00013698,2]
[339802413,1727988661846,-500.0,0.00013698,2]
[339802414,1727988661856,-500.0,0.00013698,2]
[339802415,1727988661866,-500.0,0.00013698,2]
[339802416,1727988661875,-500.0,0.00013698,2]
[339802417,1727988661884,-543.89,0.00013698,2]
[339802418,1727988661894,-500.0,0.00013698,2]
[339802419,1727988661904,-500.0,0.00013698,2]
[339802420,1727988661914,-500.0,0.00013698,2]
[339802421,1727988661923,-500.0,0.00013698,2]
[339802422,1727988661934,-500.0,0.00013698,2]
[339802423,1727988661943,-500.0,0.00013698,2]
[339802424,1727988661953,-500.0,0.00013698,2]
[339802425,1727988661963,-500.0,0.00013698,2]
[339802426,1727988661973,-500.0,0.00013698,2]
[339802427,1727988661982,-500.0,0.00013698,2]
[339802428,1727988661991,-500.0,0.00013698,2]
[339802429,1727988662002,-596.01,0.00013698,2]
[339802430,1727988662013,-500.0,0.00013698,2]
[339802431,1727988662023,-500.0,0.00013698,2]
[339802432,1727988662033,-500.0,0.00013698,2]
[339802433,1727988662046,-1974.66,0.00013698,2]
[339802434,1727988662056,-500.0,0.00013698,2]
[339802435,1727988662067,-500.0,0.00013698,2]
[339802436,1727988662076,-500.0,0.00013698,2]
[339802437,1727988662085,-699.88,0.00013698,2]
[339802438,1727988662094,-500.0,0.00013698,2]
[339802439,1727988662104,-500.0,0.00013698,2]
[339802440,1727988662116,-500.0,0.00013698,2]
[339802441,1727988662126,-554.16,0.00013698,2]
[339802442,1727988662137,-500.0,0.00013698,2]
[339802443,1727988662149,-500.0,0.00013698,2]
[339802444,1727988662160,-500.0,0.00013698,2]
[339802445,1727988662170,-500.0,0.00013698,2]
[339802446,1727988662180,-478.92,0.00013698,2]
[339802447,1727988662192,-500.0,0.00013698,2]
[339802448,1727988662203,-500.0,0.00013698,2]
[339802449,1727988662215,-506.06770112,0.00013698,2]
[339802450,1727988662228,-500.0,0.00013698,2]
[339802451,1727988662240,-500.0,0.00013698,2]
[339802452,1727988662250,-500.0,0.00013698,2]
[339802453,1727988662260,-500.0,0.00013698,2]
[339802454,1727988662270,-675.97,0.00013698,2]
[339802455,1727988662279,-661.58,0.00013698,2]
[339802456,1727988662289,-500.0,0.00013698,2]
[339802457,1727988662298,-500.0,0.00013698,2]
[339802458,1727988662308,-500.0,0.00013698,2]
[339802459,1727988662319,-500.0,0.00013698,2]
[339802460,1727988662330,-500.0,0.00013698,2]
[339802461,1727988662342,-500.0,0.00013698,2]
[339802462,1727988662353,-940.59,0.00013698,2]
[339802463,1727988662364,-640.44497022,0.00013698,2]
[339802464,1727988662373,-500.0,0.00013698,2]
[339802465,1727988662383,-500.0,0.00013698,2]
[339802466,1727988662394,-734.6,0.00013698,2]
[339802467,1727988662403,-500.0,0.00013698,2]
[339802468,1727988662413,-626.1,0.00013698,2]
[339802469,1727988662422,-500.0,0.00013698,2]
[339802470,1727988662437,-500.0,0.00013698,2]
[339802471,1727988662448,-500.0,0.00013698,2]
[339802472,1727988662458,-500.0,0.00013698,2]
[339802473,1727988662467,-803.94,0.00013698,2]
[339802474,1727988662476,-500.0,0.00013698,2]
[339802475,1727988662485,-781.99,0.00013698,2]
[339802476,1727988662495,-475.08178642,0.00013698,2]
[339802477,1727988662504,-644.38,0.00013698,2]
[339802478,1727988662514,-1223.78,0.00013698,2]
[339802479,1727988662524,-500.0,0.00013698,2]
[339802480,1727988662533,-500.0,0.00013698,2]
[339802481,1727988662542,-500.0,0.00013698,2]
[339802482,1727988662552,-500.0,0.00013698,2]
[339802483,1727988662562,-500.0,0.00013698,2]
[339802484,1727988662571,-500.0,0.00013698,2]
[339802485,1727988662581,-500.0,0.00013698,2]
[339802486,1727988662590,-500.0,0.00013698,2]
[339802487,1727988662599,-500.0,0.00013698,2]
[339802488,1727988662609,-500.0,0.00013698,2]
[339802489,1727988662618,-500.0,0.00013698,2]
[339802490,1727988662628,-500.0,0.00013698,2]
[339802491,1727988662639,-500.0,0.00013698,2]
[339802492,1727988662650,-500.0,0.00013698,2]
[339802493,1727988662659,-627.99,0.00013698,2]
[339802494,1727988662668,-646.12,0.00013698,2]
[339802495,1727988662678,-500.0,0.00013698,2]
[339802496,1727988662687,-500.0,0.00013698,2]
[339802497,1727988662696,-691.05,0.00013698,2]
[339802498,1727988662706,-500.0,0.00013698,2]
[339802499,1727988662715,-514.29,0.00013698,2]
[339802500,1727988662724,-500.0,0.00013698,2]
[339802501,1727988662734,-537.02,0.00013698,2]
[339802502,1727988662743,-500.0,0.00013698,2]
[339802503,1727988662752,-500.0,0.00013698,2]
[339802504,1727988662762,-500.0,0.00013698,2]
[339802505,1727988662772,-537.0,0.00013698,2]
[339802506,1727988662781,-650.84,0.00013698,2]
[339802507,1727988662790,-500.0,0.00013698,2]
[339802508,1727988662799,-545.74,0.00013698,2]
[339802509,1727988662808,-500.0,0.00013698,2]
[339802510,1727988662818,-589.99,0.00013698,2]
[339802511,1727988662827,-581.59139014,0.00013698,2]
[339802512,1727988662837,-500.0,0.00013698,2]
[339802513,1727988662846,-551.74,0.00013698,2]
[339802514,1727988662856,-500.0,0.00013698,2]
[339802515,1727988662866,-500.0,0.00013698,2]
[339802516,1727988662875,-500.0,0.00013698,2]
[339802517,1727988662885,-647.33605125,0.00013698,2]
[339802518,1727988662897,-500.0,0.00013698,2]
[339802519,1727988662909,-500.0,0.00013698,2]
[339802520,1727988662918,-596.74,0.00013698,2]
[339802521,1727988662927,-500.0,0.00013698,2]
[339802522,1727988662937,-500.0,0.00013698,2]
[339802523,1727988662946,-500.0,0.00013698,2]
[339802524,1727988662955,-687.26,0.00013698,2]
[339802525,1727988662965,-500.0,0.00013698,2]
[339802526,1727988662974,-500.0,0.00013698,2]
[339802527,1727988662983,-500.0,0.00013698,2]
[339802528,1727988662992,-500.0,0.00013698,2]
[339802529,1727988663003,-500.0,0.00013698,2]
[339802530,1727988663012,-821.19,0.00013698,2]
[339802531,1727988663021,-500.0,0.00013698,2]
[339802532,1727988663030,-500.0,0.00013698,2]
[339802533,1727988663040,-500.0,0.00013698,2]
[339802534,1727988663049,-772.03,0.00013698,2]
[339802535,1727988663059,-500.0,0.00013698,2]
[339802536,1727988663068,-705.96,0.00013698,2]
[339802537,1727988663078,-500.0,0.00013698,2]
[339802538,1727988663088,-779.96,0.00013698,2]
[339802539,1727988663098,-500.0,0.00013698,2]
[339802540,1727988663107,-500.0,0.00013698,2]
[339802541,1727988663117,-500.0,0.00013698,2]
[339802542,1727988663126,-585.71,0.00013698,2]
[339802543,1727988663135,-622.14,0.00013698,2]
[339802544,1727988663145,-154.22769096,0.00013698,2]
[339802545,1727988663153,-622.87,0.00013698,2]
[339802546,1727988663162,-500.0,0.00013698,2]
[339802547,1727988663172,-500.0,0.00013698,2]
[339802548,1727988663181,-289.64704842,0.00013698,2]
[339802549,1727988663190,-540.86,0.00013698,2]
[339802550,1727988663199,-629.39403167,0.00013698,2]
[339802551,1727988663209,-640.57517727,0.00013698,2]
[339802552,1727988663220,-597.02,0.00013698,2]
[339802553,1727988663231,-711.65,0.00013698,2]
[339802554,1727988663242,-500.0,0.00013698,2]
[339802555,1727988663252,-500.0,0.00013698,2]
[339802556,1727988663262,-571.9,0.00013698,2]
[339802557,1727988663386,-500.0,0.00013698,2]
[339802558,1727988663398,-500.0,0.00013698,2]
[339802559,1727988663407,-500.0,0.00013698,2]
[339802560,1727988663417,-521.72,0.00013698,2]
[339802561,1727988663427,-500.0,0.00013698,2]
[339802562,1727988663440,-715.09,0.00013698,2]
[339802563,1727988663449,-500.0,0.00013698,2]
[339802564,1727988663459,-500.0,0.00013698,2]
[339802565,1727988663468,-500.0,0.00013698,2]
[339802566,1727988663478,-671.19,0.00013698,2]
[339802567,1727988663488,-798.23,0.00013698,2]
[339802568,1727988663497,-1232.07,0.00013698,2]
[339802569,1727988663509,-490.43730308,0.00013698,2]
[339802570,1727988663519,-500.0,0.00013698,2]
[339802571,1727988663529,-500.0,0.00013698,2]
[339802572,1727988663539,-500.0,0.00013698,2]
[339802573,1727988663548,-554.07,0.00013698,2]
[339802574,1727988663558,-500.0,0.00013698,2]
[339802575,1727988663567,-500.0,0.00013698,2]
[339802576,1727988663577,-973.39,0.00013698,2]
[339802577,1727988663586,-500.331281,0.00013698,2]
[339802578,1727988663596,-500.0,0.00013698,2]
[339802579,1727988663606,-717.82,0.00013698,2]
[339802580,1727988663616,-518.08,0.00013698,2]
[339802581,1727988663626,-500.0,0.00013698,2]
[339802582,1727988663637,-719.02,0.00013698,2]
[339802583,1727988663648,-600.23,0.00013698,2]
[339802584,1727988663658,-500.0,0.00013698,2]
[339802585,1727988663668,-500.0,0.00013698,2]
[339802586,1727988663677,-547.98,0.00013698,2]
[339802587,1727988663687,-500.0,0.00013698,2]
[339802588,1727988663696,-500.0,0.00013698,2]
[339802589,1727988663706,-500.0,0.00013698,2]
[339802590,1727988663715,-500.0,0.00013698,2]
[339802591,1727988663724,-764.21,0.00013698,2]
[339802592,1727988663733,-500.0,0.00013698,2]
[339802593,1727988663743,-500.0,0.00013698,2]
[339802594,1727988663752,-500.4,0.00013698,2]
[339802595,1727988663761,-500.66341814,0.00013698,2]
[339802596,1727988663771,-500.0,0.00013698,2]
[339802597,1727988663780,-500.0,0.00013698,2]
[339802598,1727988663789,-500.0,0.00013698,2]
[339802599,1727988663799,-536.43834119,0.00013698,2]
[339802600,1727988663808,-994.98,0.00013698,2]
[339802601,1727988663818,-500.0,0.00013698,2]
[339802602,1727988663827,-500.0,0.00013698,2]
[339802603,1727988663836,-23984.56,0.00013698,2]
[339802604,1727988663845,-500.0,0.00013698,2]
[339802605,1727988663856,-605.9257299,0.00013698,2]
[339802606,1727988663865,-712.9,0.00013698,2]
[339802607,1727988663875,-500.0,0.00013698,2]
[339802608,1727988663885,-500.0,0.00013698,2]
[339802609,1727988663896,-500.0,0.00013698,2]
[339802610,1727988663906,-477.70611975,0.00013698,2]
[339802611,1727988664237,-22.29388025,0.00013698,2]
[339802612,1727988664247,-500.0,0.00013698,2]
[339802613,1727988664257,-500.0,0.00013698,2]
[339802614,1727988664266,-500.0,0.00013698,2]
[339802615,1727988664275,-500.0,0.00013698,2]
[339802616,1727988664284,-593.9,0.00013698,2]
[339802617,1727988664294,-3286.9,0.00013698,2]
[339802618,1727988664304,-732.15,0.00013698,2]
[339802619,1727988664313,-500.0,0.00013698,2]
[339802620,1727988664322,-500.0,0.00013698,2]
[339802621,1727988664332,-500.30618596,0.00013698,2]
[339802622,1727988664343,-500.0,0.00013698,2]
[339802623,1727988664352,-473.49993379,0.00013698,2]
[339802624,1727989736085,-177.16,0.00010959,2]
[339802625,1727989736119,-177.16,0.00010959,2]
[339802626,1727989736155,-708.69,0.00010959,2]
[339802627,1727989736191,-300.0,0.00012201,2]
[339802628,1727989736224,-300.0,0.00012201,2]
[339802629,1727989736262,-24900.0,0.00012202,2]
[339802630,1727989736297,-160.508506,0.00012355,2]
[339802631,1727989736332,-160.508506,0.0001257,2]
[339802632,1727989736365,-246.704973,0.00012603,2]
[339802633,1727989736398,-160.508506,0.00012784,2]
[339802634,1727989736432,-160.508506,0.00012999,2]
[339802635,1727989736467,-420.0,0.00013392,2]
[339802636,1727989736500,-420.0,0.00013421,2]
[339802637,1727989736532,-187.308322,0.00013428,2]
[339802638,1727989736565,-745.06531323,0.00013471,2]
[339802639,1727989736596,-1260.70977769,0.0001349,2]
[339802640,1727989736629,-1260.70977766,0.00013515,2]
[339802641,1727989736663,-150.0,0.00013523,2]
[339802642,1727989736697,-5941.42465319,0.00013535,2]
[339802643,1727989736731,-1260.70977766,0.00013539,2]
[339802644,1727989736766,-6365.3754988,0.00013547,2]
[339802645,1727989736799,-1260.70977766,0.00013564,2]
[339802646,1727989736832,-21307.01987895,0.00013572,2]
[339802647,1727989736866,-1260.70977766,0.00013588,2]
[339802648,1727989736900,-16699.6512266,0.00013588,2]
[339802649,1727989736933,-2047.01347134,0.00013588,2]
[339802650,1727989736966,-1000.0,0.00013588,2]
[339802651,1727989736999,-16699.6512266,0.0001359,2]
[339802652,1727989737032,-2047.01347134,0.0001359,2]
[339802653,1727989737070,-187.308322,0.00013596,2]
[339802654,1727989737103,-953.09585469,0.00013598,2]
[339802655,1727989737140,-34196.68107138,0.00013598,2]
[339802656,1727989737172,-22789.48,0.000136,2]
[339802657,1727989737205,-66798.6049063,0.00013678,2]
[339802658,1727989737240,-8188.05388536,0.00013678,2]
[339802659,1727989737273,-16699.6512266,0.00013678,2]
[339802660,1727989737307,-2047.01347134,0.00013678,2]
[339802661,1727989737346,-100197.907359,0.00013688,2]
[339802662,1727989737382,-14329.0942994,0.00013688,2]
[339802663,1727989737419,-2047.01347134,0.00013689,2]
[339802664,1727989737455,-1000.0,0.0001369,2]
[339802665,1727989737491,-500.0,0.00013695,2]
[339802666,1727989737524,-500.21915935,0.00013698,2]
[339802667,1727989737560,-500.0,0.00013698,2]
[339802668,1727989737596,-500.0,0.00013698,2]
[339802669,1727989737633,-486.95229471,0.00013698,2]
[339802670,1727989737667,-500.0,0.00013698,2]
[339802671,1727989737701,-500.0,0.00013698,2]
[339802672,1727989737737,-500.0,0.00013698,2]
[339802673,1727989737770,-595.17,0.00013698,2]
[339802674,1727989738029,-500.0,0.00013698,2]
[339802675,1727989738065,-500.0,0.00013698,2]
[339802676,1727989738099,-500.0,0.00013698,2]
[339802677,1727989738134,-507.02851309,0.00013698,2]
[339802678,1727989738173,-500.0,0.00013698,2]
[339802679,1727989738207,-500.0,0.00013698,2]
[339802680,1727989738240,-500.0,0.00013698,2]
[339802681,1727989738275,-500.0,0.00013698,2]
[339802682,1727989738310,-500.0,0.00013698,2]
[339802683,1727989738341,-500.0,0.00013698,2]
[339802684,1727989738376,-641.17512835,0.00013698,2]
[339802685,1727989738410,-324.33429113,0.00013698,2]
[339802686,1727989738445,-500.0,0.00013698,2]
[339802687,1727989738479,-500.0,0.00013698,2]
[339802688,1727989738512,-557.58281222,0.00013698,2]
[339802689,1727989738551,-649.38,0.00013698,2]
[339802690,1727989738585,-500.0,0.00013698,2]
[339802691,1727989738618,-513.99,0.00013698,2]
[339802692,1727989738651,-789.81,0.00013698,2]
[339802693,1727989738684,-500.0,0.00013698,2]
[339802694,1727989738719,-500.0,0.00013698,2]
[339802695,1727989738752,-518.32,0.00013698,2]
[339802696,1727989738785,-500.0,0.00013698,2]
[339802697,1727989738818,-500.0,0.00013698,2]
[339802698,1727989738851,-653.77,0.00013698,2]
[339802699,1727989738884,-500.0,0.00013698,2]
[339802700,1727989738917,-500.0,0.00013698,2]
[339802701,1727989738952,-500.0,0.00013698,2]
[339802702,1727989738988,-623.72,0.00013698,2]
[339802703,1727989739024,-500.0,0.00013698,2]
[339802704,1727989739059,-500.0,0.00013698,2]
[339802705,1727989739097,-500.0,0.00013698,2]
[339802706,1727989739137,-500.0,0.00013698,2]
[339802707,1727989739175,-500.0,0.00013698,2]
[339802708,1727989739207,-500.0,0.00013698,2]
[339802709,1727989739243,-500.0,0.00013698,2]
[339802710,1727989739276,-500.0,0.00013698,2]
[339802711,1727989739311,-500.0,0.00013698,2]
[339802712,1727989739344,-540.07228377,0.00013698,2]
[339802713,1727989739380,-500.0,0.00013698,2]
[339802714,1727989739416,-500.0,0.00013698,2]
[339802715,1727989739451,-500.0,0.00013698,2]
[339802716,1727989739482,-500.0,0.00013698,2]
[339802717,1727989739518,-500.0,0.00013698,2]
[339802718,1727989739556,-718.2,0.00013698,2]
[339802719,1727989739594,-500.0,0.00013698,2]
[339802720,1727989739630,-500.0,0.00013698,2]
[339802721,1727989739666,-500.0,0.00013698,2]